[Event "ESP-ch Teams Honor 2024"]
[Site "Melilla"]
[Date "2024.10.15"]
[Round "4.20"]
[White "Korobov, Anton"]
[Black "Santos Latasa, Jaime"]
[Result "1/2-1/2"]
[ECO "A45"]
[WhiteElo "2660"]
[BlackElo "2621"]
[Annotator "TA"]
[PlyCount "109"]
[EventDate "2024.10.11"]
[EventType "team-tourn"]
[EventCountry "ESP"]
[SourceTitle "playchess.com"]
[Source "ChessBase"]
[SourceQuality "1"]
[WhiteTeam "Silla"]
[BlackTeam "Extremadura"]
[TimeControl "5400+30"]

{[%evp 58,109,438,127,125,129,123,124,119,120,115,114,118,116,122,146,216,216,216,215,207,167,137,143,138,160,138,0,36,0,149,157,304,304,304,299,297,0,297,0,266,248,250,216,231,77,204,8,8,0,0,0,0,0]} 1. d4 {[%emt 0:02:21]} Nf6 {[%emt 0:00:07]} 2. Bg5 {[%emt 0:00:06]} e6 {[%emt 0:01:03]} 3. c3 {[%emt 0:00:22]} h6 {[%emt 0:01:00]} 4. Bh4 {[%emt 0:00:08]} c5 {[%emt 0:00:47]} 5. e3 {[%emt 0:00:36]} cxd4 {[%emt 0:01:56]} 6. exd4 {[%emt 0:00:53]} Be7 {[%emt 0:00:11]} 7. Nd2 {[%emt 0:01:09]} Nc6 {[%emt 0:02:45]} 8. Ngf3 {[%emt 0:03:24]} O-O {[%emt 0:03:38]} 9. Bd3 {[%emt 0:02:57]} Nh5 {[%emt 0:00:18]} 10. Bg3 {[%emt 0:01:39]} g6 {[%emt 0:02:24]} 11. Qe2 {[%emt 0:16:25]} Kg7 {[%emt 0:03:26]} 12. O-O-O {[%emt 0:06:45]} d6 {[%emt 0:02:59]} 13. h4 {[%emt 0:04:41]} Nxg3 {[%emt 0:13:41]} 14. fxg3 {[%emt 0:00:48]} Bd7 {[%emt 0:00:09]} 15. h5 {[%emt 0:03:41]} g5 {[%emt 0:00:52]} 16. g4 {[%emt 0:04:09]} Qc7 {[%emt 0:05:30]} 17. Kb1 {[%emt 0:03:30]} d5 {[%emt 0:01:43]} 18. Ne5 {[%emt 0:07:28]} Bd6 {[%emt 0:04:01]} 19. Nxd7 {[%emt 0:02:32]} Qxd7 {[%emt 0:00:29]} 20. Rhf1 {[%emt 0:00:23]} a6 {[%emt 0:01:58]} 21. Bc2 {[%emt 0:04:15]} b5 {[%emt 0:07:21]} 22. Qf3 {[%emt 0:03:46]} Rh8 {[%emt 0:04:30]} 23. Ne4 {[%emt 0:08:47]} Ra7 {[%emt 0:07:07]} 24. Nxg5 {[%emt 0:07:22]} Qe7 {[%emt 0:02:35]} 25. Nh3 {[%emt 0:01:43]} Rc7 {[%emt 0:01:05]} 26. Rf2 {[%emt 0:05:21]} b4 {[%emt 0:00:58]} 27. Rdf1 {[%emt 0:00:48]} bxc3 {[%emt 0:01:02]} 28. Qd3 {[%emt 0:02:14]} Nd8 {[%emt 0:02:54]} 29. g5 {[%emt 0:01:20]} Qe8 {[%emt 0:02:38]} 30. Rf6 $2 {[%emt 0:03:00]} (30. Qxa6 Qc6 31. Qd3 cxb2 $18) (30. bxc3 Qb5+ 31. Qxb5 axb5 $14) (30. gxh6+ Rxh6 31. Qf3 (31. bxc3 Qb5+ 32. Qxb5 axb5 $11) (31. Qxa6 Qe7 $16) 31... Rb7 $18) (30. Qe3 $18) 30... Qb5 $16 {[%emt 0:01:30]} 31. Rg6+ $1 {[%emt 0:00:28]} Kf8 {[%emt 0:00:10]} 32. Qxb5 {[%emt 0:00:04]} (32. gxh6 $2 Qxb2#) 32... axb5 {[%emt 0:00:06]} 33. Rxh6 {[%emt 0:00:15]} (33. gxh6 Ke8 34. Rg4 (34. Rgf6 Be7 $11) 34... Rxh6 $14) 33... Kg7 {[%emt 0:01:29]} 34. Rxh8 {[%emt 0:00:55]} Kxh8 {[%emt 0:00:06]} 35. Nf4 {[%emt 0:01:41]} cxb2 {[%emt 0:00:55]} 36. h6 $1 {[%emt 0:00:31]} (36. Kxb2 $6 Nc6 $14) 36... Rc4 {[%emt 0:01:33]} (36... Kg8 $16 37. Kxb2 Rc4) 37. g6 $1 $18 {[%emt 0:00:56]} (37. Kxb2 Rxd4 38. g3 Rd2 $11) (37. Ne2 Be7) 37... fxg6 {[%emt 0:00:25]} (37... Rxd4 38. g7+ Kg8 39. Nh5 f5 40. Nf6+ (40. Kxb2 Be5 $11) 40... Kf7 41. g8=Q+ (41. g8=B+ Kxf6 42. Rh1 Bf8 $17) 41... Ke7 42. Qe8+ (42. Kxb2 Rb4+ 43. Bb3 Nf7 $18) (42. Qg7+ Nf7 $18) 42... Kxf6 43. Qxd8+ (43. h7 Nf7 44. h8=Q+ Nxh8 45. Qxh8+ Kg6 46. Qxd4 Bf8 47. Bxf5+ exf5 48. Qxd5 f4)) 38. Nxg6+ {[%emt 0:00:08]} (38. Kxb2 Kh7 $11) 38... Kh7 {[%emt 0:00:08]} 39. Rh1 {[%emt 0:00:55]} (39. Kxb2 Kxh6 40. Nf4 Kg7 $11 (40... Rxd4 41. Nxe6 Rb4+ 42. Kc1 $11)) 39... Rxd4 {[%emt 0:01:11]} (39... Rxc2 40. Kxc2 Nc6 41. Kxb2 (41. Nh4 Nxd4+ 42. Kxb2 Bf4 $18) 41... Nxd4 42. Nh4) 40. g4 {[%emt 0:00:58]} Rd2 {[%emt 0:01:38]} (40... Nf7 $2 41. Ne5+ (41. Kxb2 Ng5 $11) 41... Re4 42. Nxf7 $18 (42. Bxe4+ dxe4 43. Nxf7 Be7 $18)) 41. Nh4+ $1 {[%emt 0:00:02]} (41. Kxb2 $6 Nf7 $15 (41... Rxc2+ $2 42. Kxc2 Kxg6 43. h7 $18)) 41... Kh8 {[%emt 0:00:49]} 42. Ng6+ {[%emt 0:00:02]} (42. Kxb2 $6 Nc6 $11) (42. g5 $1 $16 {Black must now prevent Ng6+.} Rh2 43. Rxh2 Bxh2 44. Ng6+ (44. Kxb2 Nf7 $11) 44... Kg8 45. Kxb2) 42... Kh7 $14 {[%emt 0:00:05]} 43. Nh4+ {[%emt 0:00:15]} (43. g5 $14 Rxc2 44. Kxc2) 43... Kh8 $1 $16 {[%emt 0:00:04] [#]} 44. g5 $1 {[%emt 0:00:27]} (44. Kxb2 $6 Nc6 $11) 44... Rh2 {[%emt 0:00:10]} (44... Nf7 $16 {was necessary.}) 45. Ng6+ $18 {[%emt 0:01:13]} (45. Rxh2 $6 Bxh2 46. Ng6+ (46. Kxb2 Nf7 $14) 46... Kg8 $18) 45... Kg8 {[%emt 0:00:28]} 46. Ne7+ {[%emt 0:00:21]} Kf8 {[%emt 0:01:38]} 47. Ng6+ {[%emt 0:00:23]} Kg8 {[%emt 0:00:05]} 48. Ne7+ {[%emt 0:00:23]} Kf8 $1 {[%emt 0:00:04]} 49. Rxh2 {[%emt 0:00:53]} Bxh2 {[%emt 0:00:05] [#]} 50. g6 $1 {[%emt 0:00:16]} (50. Ng6+ Kg8 $11) 50... Be5 {[%emt 0:00:05]} (50... Kxe7 $2 {is the wrong capture.} 51. g7 $18) 51. Nc8 $2 {[%emt 0:00:18]} (51. g7+ $18 {is the precise move to win.} Bxg7 52. hxg7+ (52. Ng6+ Kg8 $18) 52... Kxg7 53. Kxb2) 51... Bd4 {[%emt 0:01:19]} (51... Nc6 $16) 52. a3 $2 {[%emt 0:00:43]} (52. g7+ $18 Bxg7 53. hxg7+ Kxg7 54. a3 (54. Kxb2 Kf6 $18)) 52... Bc5 $1 $11 {[%emt 0:01:39]} 53. Kxb2 {[%emt 0:00:15]} Nc6 {[%emt 0:00:23]} 54. a4 {[%emt 0:01:35]} bxa4 {[%emt 0:01:34]} 55. Bxa4 {[%emt 0:00:02]} 1/2-1/2

[Event "ESP-ch Teams Honor 2024"]
[Site "Melilla"]
[Date "2024.10.15"]
[Round "4.21"]
[White "Perez Candelario, Manuel"]
[Black "Yuffa, Daniil"]
[Result "0-1"]
[ECO "C17"]
[WhiteElo "2588"]
[BlackElo "2608"]
[Annotator "TA"]
[PlyCount "116"]
[EventDate "2024.10.11"]
[EventType "team-tourn"]
[EventCountry "ESP"]
[SourceTitle "playchess.com"]
[Source "ChessBase"]
[SourceQuality "1"]
[WhiteTeam "Extremadura"]
[BlackTeam "Silla"]
[TimeControl "5400+30"]

{[%evp 34,116,0,-22,-11,-80,-66,-71,0,0,0,0,0,0,6,0,-6,-55,-49,-41,-35,-54,-43,-158,-166,-145,-154,-158,-128,-540,-507,-531,-516,-485,-176,-185,-180,-191,-191,-185,-195,-177,-99,-99,-83,-97,-81,-81,-86,-97,-63,-177,-97,-105,-104,-134,-121,-124,-116,-120,-115,-251,-247,-233,-219,-185,-134,-137,-133,-133,-136,-112,-71,-200,-189,-434,-414,-898,-587,-558,-496,-1252,-1110,-8182,-8175]} 1. e4 {[%emt 0:00:05]} e6 {[%emt 0:02:28]} 2. d4 {[%emt 0:00:04]} d5 {[%emt 0:00:04]} 3. Nc3 {[%emt 0:00:03]} Bb4 {[%emt 0:00:14]} 4. e5 {[%emt 0:00:11]} c5 {[%emt 0:00:07]} 5. Bd2 {[%emt 0:00:23]} Ne7 {[%emt 0:03:50]} 6. a3 {[%emt 0:00:13]} Bxc3 {[%emt 0:01:14]} 7. Bxc3 {[%emt 0:00:04]} Nbc6 {[%emt 0:06:16] C17: French: 3 Nc3 Bb4 4 e5 c5 sidelines.} 8. Nf3 {[%emt 0:05:04]} b6 {[%emt 0:07:25]} 9. h4 $146 {[%emt 0:02:53]} ({Predecessor:} 9. Bb5 a6 10. Bxc6+ Nxc6 11. O-O a5 12. Qd2 Qe7 13. Rfe1 Ba6 14. h4 h6 15. h5 {½-½ Zilka,S (2609)-Shevchenko,K (2665) EU-chT 24th Budva 2023 (3.6)}) 9... a5 {[%emt 0:02:55]} 10. h5 {[%emt 0:02:53]} h6 {[%emt 0:03:26]} 11. Bb5 {[%emt 0:01:02]} Ba6 {[%emt 0:04:12]} 12. Bxc6+ {[%emt 0:02:27]} Nxc6 {[%emt 0:00:05]} 13. Qd2 {[%emt 0:02:36]} Rc8 {[%emt 0:08:00]} 14. Rh3 {[%emt 0:04:16]} Ne7 {[%emt 0:06:48]} 15. g4 {[%emt 0:09:05]} Qd7 {[%emt 0:03:02]} 16. a4 {[%emt 0:14:49]} Qc6 {[%emt 0:04:32]} 17. Rg3 {[%emt 0:09:15]} Kd7 {[%emt 0:05:19]} 18. b3 {[%emt 0:05:38]} c4 {[%emt 0:02:12]} 19. Nh4 {[%emt 0:01:21]} (19. Ng1 $11 {remains equal.}) 19... cxb3 $17 {[%emt 0:04:25]} 20. cxb3 {[%emt 0:00:04]} b5 {[%emt 0:05:36]} (20... g6 $17) 21. Bxa5 $11 {[%emt 0:06:13]} bxa4 {[%emt 0:00:25]} 22. Qb4 {[%emt 0:02:16]} ({Much worse is} 22. bxa4 Qc4 23. Kd1 Ra8 $17) 22... axb3 {[%emt 0:06:40]} 23. Rxb3 {[%emt 0:01:50]} Ra8 {[%emt 0:05:25]} 24. Rc3 {[%emt 0:06:52]} Bc4 {[%emt 0:00:33]} 25. Rca3 {[%emt 0:00:25]} (25. Rcc1 $11) 25... Rhb8 $15 {[%emt 0:02:29]} 26. Qc3 {[%emt 0:00:10]} Qb5 {[%emt 0:02:31]} 27. Nf3 {[%emt 0:06:03]} Bf1 {[%emt 0:04:38]} 28. Qc2 {[%emt 0:03:16]} (28. Ng1 $1 $15 Nc6 29. f4) 28... Nc6 $1 $17 {[%emt 0:01:12]} 29. Bc3 {[%emt 0:01:35]} Rxa3 $1 {[%emt 0:01:56]} 30. Rxa3 {[%emt 0:00:03]} Qc4 {[%emt 0:01:22]} 31. Ng1 $2 {[%emt 0:04:23][%mdl 8192]} (31. Kd1 $17 {was the crucial defense.}) 31... Bd3 {[%emt 0:00:56]} 32. Qa4 {[%emt 0:02:57]} Rb1+ {[%emt 0:00:08]} 33. Kd2 {[%emt 0:00:03]} Qxa4 $2 {[%emt 0:03:10]} (33... Rxg1 34. Qa8 Rb1 (34... Rxg4 35. Qb7+ Ke8 36. Ra8+ Nd8 37. Qb8)) 34. Rxa4 $19 {[%emt 0:00:06]} Rxg1 {[%emt 0:00:05]} 35. Kxd3 {[%emt 0:00:03]} Rxg4 {[%emt 0:00:07]} 36. Ra8 {[%emt 0:00:37]} Rf4 $1 {[%emt 0:00:40]} 37. Ke3 {[%emt 0:00:26]} Re4+ {[%emt 0:00:33]} (37... Rh4 $19 38. Bb2 Rh3+ (38... Rxh5 $2 39. Ba3 $17) 39. Kd2 Rxh5) 38. Kd3 $17 {[%emt 0:00:06]} Rh4 {[%emt 0:01:04]} 39. Rg8 {[%emt 0:01:18]} Rxh5 {[%emt 0:00:59]} 40. Rxg7 {[%emt 0:00:04]} Rh3+ {[%emt 0:00:05]} 41. Rg3 {[%emt 0:02:06]} Rh2 {[%emt 0:01:30]} 42. f3 {[%emt 0:03:08]} (42. Rg7 $1 $15) 42... h5 {[%emt 0:00:46]} ({Black should try} 42... Ne7 $1 $19 43. Rg7 Ke8) 43. Rg7 $17 {[%emt 0:00:10]} Ke7 {[%emt 0:00:25]} 44. Bd2 {[%emt 0:00:30]} Rh3 {[%emt 0:00:44]} 45. Ke3 {[%emt 0:01:20]} Rh4 {[%emt 0:00:13]} 46. Bc3 {[%emt 0:00:25]} Rh1 {[%emt 0:01:01]} 47. Rg8 {[%emt 0:01:41] [#]} (47. Bb2 $17) 47... h4 $1 $19 {[%emt 0:00:40]} 48. Rc8 {[%emt 0:00:30]} Kd7 {[%emt 0:00:08]} 49. Rf8 {[%emt 0:00:10]} h3 {[%emt 0:01:00]} ({Black should play} 49... Ne7 $19 {aiming for ...h3.} 50. Rxf7 Ke8) 50. Rxf7+ $17 {[%emt 0:00:04]} Ke8 {[%emt 0:00:22]} 51. Rh7 {[%emt 0:02:04]} h2 {[%emt 0:01:22]} 52. Bd2 {[%emt 0:00:31]} Ne7 {[%emt 0:00:26]} 53. Ke2 {[%emt 0:00:44]} (53. Kf2 $17) 53... Nf5 $19 {[%emt 0:00:24]} 54. Bf4 $2 {[%emt 0:00:03]} (54. Kd3) 54... Nxd4+ $19 {[%emt 0:00:24]} 55. Kf2 {[%emt 0:00:08] [#]} (55. Kd2 $142) 55... Nxf3 $1 $19 {[%emt 0:00:27]} 56. Rh6 {[%emt 0:01:41]} Kf7 {[%emt 0:00:37]} 57. Bg3 {[%emt 0:01:59]} (57. Kxf3 $142 Rf1+ 58. Kg2 Rxf4 59. Kxh2) 57... Ra1 $19 {[%emt 0:00:28]} 58. Kg2 {[%emt 0:00:30]} Rg1+ {[%emt 0:00:14]} 0-1

[Event "ESP-ch Teams Honor 2024"]
[Site "Melilla"]
[Date "2024.10.15"]
[Round "4.22"]
[White "Alonso Rosell, Alvar"]
[Black "Oro, Faustino"]
[Result "1-0"]
[ECO "A14"]
[WhiteElo "2550"]
[BlackElo "2434"]
[Annotator "TA"]
[PlyCount "101"]
[EventDate "2024.10.11"]
[EventType "team-tourn"]
[EventCountry "ESP"]
[SourceTitle "playchess.com"]
[Source "ChessBase"]
[SourceQuality "1"]
[WhiteTeam "Silla"]
[BlackTeam "Extremadura"]
[TimeControl "5400+30"]

{[%evp 46,101,14,0,0,0,0,0,23,-131,-12,-91,-100,-139,-102,-114,-103,-107,-110,-101,0,-147,-125,-181,-85,-227,-47,-43,128,29,52,41,65,70,312,0,0,0,0,0,0,0,0,0,160,156,326,325,398,398,462,110,232,224,29988,29989,29989,29986]} 1. Nf3 {[%emt 0:05:31]} Nf6 {[%emt 0:00:14]} 2. g3 {[%emt 0:00:23]} d5 {[%emt 0:00:06]} 3. Bg2 {[%emt 0:00:10]} e6 {[%emt 0:00:09]} 4. c4 {[%emt 0:00:26]} Be7 {[%emt 0:00:27]} 5. O-O {[%emt 0:00:33]} O-O {[%emt 0:00:09]} 6. d4 {[%emt 0:00:11]} a5 {[%emt 0:00:06]} 7. Qc2 {[%emt 0:00:09] E06: Closed Catalan: Early deviations.} Nc6 {[%emt 0:00:08]} 8. Bd2 {[%emt 0:00:05]} Ne4 $146 {[%emt 0:03:59]} ({Predecessor:} 8... Bd7 9. a3 a4 10. cxd5 exd5 11. Nc3 h6 12. Bf4 Re8 13. Rad1 Qc8 14. Be5 Bf5 {1-0 Dhulipalla,B (2396)-Elgersma,O (2310) Rome City op 5th 2023 (6)}) 9. Rd1 {[%emt 0:00:40]} Nb4 {[%emt 0:10:58]} 10. Qc1 {[%emt 0:12:31]} Nxd2 {[%emt 0:18:42]} 11. Nbxd2 {[%emt 0:01:37]} c6 {[%emt 0:00:28]} 12. a3 {[%emt 0:05:59]} Na6 {[%emt 0:00:02]} 13. e4 {[%emt 0:00:05]} Qb6 {[%emt 0:06:12]} 14. Qc2 {[%emt 0:21:58]} Bf6 {[%emt 0:05:43]} 15. e5 {[%emt 0:09:13]} Be7 {[%emt 0:00:12]} 16. Nf1 {[%emt 0:00:12]} Bd7 {[%emt 0:05:37]} 17. Ne3 {[%emt 0:01:14]} Rfc8 {[%emt 0:01:44]} 18. Qd3 {[%emt 0:07:18]} Qd8 {[%emt 0:02:43]} 19. h4 {[%emt 0:00:28]} Nc7 {[%emt 0:01:47]} 20. Rac1 {[%emt 0:02:12]} h6 {[%emt 0:02:28]} 21. Nd2 {[%emt 0:02:48]} h5 {[%emt 0:12:57]} 22. Qe2 {[%emt 0:08:44]} g6 {[%emt 0:00:32]} 23. g4 {[%emt 0:00:13]} Bxh4 {[%emt 0:03:20]} 24. gxh5 {[%emt 0:00:27]} Qg5 {[%emt 0:03:57]} 25. hxg6 {[%emt 0:09:42]} Qxg6 {[%emt 0:00:15]} 26. Kh2 {[%emt 0:01:07]} Bg5 {[%emt 0:02:20]} 27. Bh3 $2 {[%emt 0:00:44]} (27. Qg4 $11) 27... Kf8 {[%emt 0:03:36]} ({Black should try} 27... f5 $1 $17 28. exf6 Kf7) 28. Qf3 {[%emt 0:05:40]} (28. Rg1 $11) 28... Ke7 $1 $17 {[%emt 0:02:32]} 29. Rg1 {[%emt 0:01:21]} Qh6 {[%emt 0:00:48]} 30. Rxg5 {[%emt 0:01:18]} Qxg5 {[%emt 0:00:12]} 31. Rg1 {[%emt 0:00:02]} Qh4 $1 {[%emt 0:01:32]} (31... Qh6 $2 32. Ng4 Qg7 (32... Qxd2 33. Qf6+ Kf8 34. Nh6) 33. Qf6+ (33. Nf6 Qh6 $18) 33... Qxf6 34. exf6+ Kd8 35. Ne5 $18) 32. Rg4 {[%emt 0:00:58]} Qh8 {[%emt 0:01:52]} ({Better is} 32... Qh6 $17 {And now ...Rh8 would win.} 33. Rg3 Rh8) 33. Rf4 {[%emt 0:00:37]} (33. Qf4 $1 $11 Rg8 34. Rh4) 33... Rf8 $17 {[%emt 0:00:23]} 34. Ng4 {[%emt 0:00:28]} (34. c5 $17) 34... Ne8 {[%emt 0:00:11]} (34... dxc4 $1 $19 {and Black stays clearly on top. Hoping for ...Nd5.} 35. Rf6 Nd5 36. Nxc4 Kd8) 35. Qb3 {[%emt 0:01:23]} (35. a4 $17 {was worth a try.}) 35... Rb8 $2 {[%emt 0:03:22]} (35... f5 $19 36. Ne3 Qh6) 36. Qb6 $15 {[%emt 0:00:26]} Qg7 $2 {[%emt 0:01:36]} (36... f5 $15 {keeps the upper hand.} 37. cxd5 fxg4 38. Qc5+ Kd8 39. Rxf8 Qxh3+ 40. Kg1 cxd5 41. Qb6+ Ke7 42. Qc5+ Kd8 43. Qb6+ Ke7 44. Qc5+ Kd8) 37. Nf3 {[%emt 0:00:28]} (37. Nf6 $16 {cxd5 is the strong threat.} Rh8 38. cxd5 Rxh3+ (38... cxd5 39. Qc5+ Kd8 40. Nxd7 $11) 39. Kxh3 exd5+ 40. Nxd7 Qh7+ 41. Rh4 Qd3+ 42. Kg2 Qg6+ 43. Kh2 Kxd7 44. Qa7 (44. Qxa5 Qf5 $11)) 37... Rh8 {[%emt 0:02:05]} 38. Nf6 {[%emt 0:00:11]} Qh6 {[%emt 0:02:15]} 39. Rh4 {[%emt 0:00:01]} Qf8 $2 {[%emt 0:00:05] [#]} (39... Qg7 $1 $14 40. Rg4 (40. Qxa5 $2 Rxh4 41. Qb4+ Kd8 $19) 40... Qf8) 40. Qxa5 $2 {[%emt 0:02:22]} (40. cxd5 $1 $18 {White threatens d6+ and mate.} Nxf6 41. exf6+ Ke8 (41... Kxf6 $2 42. Ne5 $18) 42. dxc6 (42. Qxa5 $2 Rxh4 43. Nxh4 Qd6+ 44. Kg1 exd5 $19) (42. Qc7 Rc8 $15) 42... Rxh4 (42... Bxc6 43. Qc7 Rd8 44. Rxh8 Rd7 45. Rxf8+ Kxf8 46. Qc8+) 43. cxd7+ Kxd7 44. Qb5+ (44. Nxh4 Qd6+ 45. Qxd6+ Kxd6 $18) 44... Kc7 45. Qxa5+ (45. Nxh4 Qd6+ 46. Qe5 Rh8 $18) 45... b6 46. Qe5+ Kb7 47. Nxh4) 40... Nxf6 $11 {[%emt 0:00:55]} (40... dxc4 $6 41. Ng5 Nxf6 42. exf6+ Ke8 (42... Kxf6 $2 43. Qe5+ Ke7 44. Ne4 $18) 43. Qe5 $16) 41. exf6+ {[%emt 0:00:04]} Ke8 $1 {[%emt 0:00:38]} 42. Qc7 {[%emt 0:00:47]} Rc8 {[%emt 0:00:10]} 43. Qf4 {[%emt 0:00:14]} Rxh4 {[%emt 0:00:38]} 44. Qxh4 {[%emt 0:00:06]} c5 $2 {[%emt 0:00:59]} (44... dxc4 $11 45. Ne5 Kd8) 45. Ne5 $16 {[%emt 0:00:21]} cxd4 $2 {[%emt 0:02:23]} (45... dxc4 $16 46. d5 Kd8) 46. cxd5 $18 {[%emt 0:00:06]} (46. Qxd4 Qh6 $11) 46... Rc5 {[%emt 0:00:47]} 47. dxe6 $1 {[%emt 0:01:53]} ({Stronger than} 47. Qxd4 Rxd5 48. Qe3 Qd6 $17) 47... Rxe5 {[%emt 0:00:14]} 48. exd7+ {[%emt 0:00:15]} (48. e7 $142 Qg8 49. Qxd4) 48... Kd8 $18 {[%emt 0:00:03] [#]} 49. Kg2 $1 {[%emt 0:00:47]} ({Weaker is} 49. Qxd4 Qc5 50. Qf4 Qd6 $11) 49... Rc5 $2 {[%emt 0:01:19]} (49... Rd5 $18) 50. Qg3 {[%emt 0:00:16]} ({Worse is} 50. Qxd4 Rg5+ 51. Kf3 Qc5 $11) 50... Rc7 {[%emt 0:00:33]} 51. Qg7 {[%emt 0:00:05]} 1-0

[Event "ESP-ch Teams Honor 2024"]
[Site "Melilla"]
[Date "2024.10.15"]
[Round "4.23"]
[White "Shuvalova, Polina"]
[Black "Khademalsharieh, Sarasadat"]
[Result "1-0"]
[ECO "C54"]
[WhiteElo "2472"]
[BlackElo "2478"]
[Annotator "TA"]
[PlyCount "89"]
[EventDate "2024.10.11"]
[EventType "team-tourn"]
[EventCountry "ESP"]
[SourceTitle "playchess.com"]
[Source "ChessBase"]
[SourceQuality "1"]
[WhiteTeam "Extremadura"]
[BlackTeam "Silla"]
[TimeControl "5400+30"]

{[%evp 23,89,0,12,0,8,14,13,15,41,54,51,-9,23,-8,94,93,111,104,89,47,46,44,50,56,150,171,162,157,155,170,158,173,173,177,173,189,194,114,155,143,363,370,454,466,432,454,445,455,445,281,360,360,579,553,722,718,717,526,530,461,5110,4172,2312,894,727,834,29958,9295]} 1. e4 {[%emt 0:00:05]} e5 {[%emt 0:01:37]} 2. Nf3 {[%emt 0:00:14]} Nc6 {[%emt 0:00:09]} 3. Bc4 {[%emt 0:00:09]} Bc5 {[%emt 0:00:18]} 4. d3 {[%emt 0:00:20]} Nf6 {[%emt 0:00:26]} 5. c3 {[%emt 0:00:31]} a6 {[%emt 0:00:45]} 6. O-O {[%emt 0:00:15]} d6 {[%emt 0:00:37]} 7. Bg5 {[%emt 0:00:27] C54: Giuoco Piano: 4 c3 Nf6, main lines with 5 d4 and 5 d3.} h6 {[%emt 0:00:33]} 8. Bh4 {[%emt 0:00:05]} Ba7 {[%emt 0:01:12]} 9. Nbd2 {[%emt 0:00:13]} g5 {[%emt 0:04:18] 9...Qe7 deserves study.} 10. Bg3 {[%emt 0:00:47]} O-O {[%emt 0:13:29]} 11. a4 {[%emt 0:04:00] 11.Bb3 is not played anymore.} Nh7 {[%emt 0:01:03]} 12. Kh1 {[%emt 0:10:29]} Qf6 {[%emt 0:00:38]} 13. b4 {[%emt 0:04:22]} Ne7 {[%emt 0:06:25]} 14. b5 $146 {[%emt 0:00:20]} ({Predecessor:} 14. d4 Ng6 15. Bb3 h5 16. dxe5 dxe5 17. Nc4 Bg4 18. h3 Rad8 19. hxg4 Rxd1 20. Raxd1 hxg4 21. Nfxe5 Nxe5 22. Nxe5 {½-½ Valenzuela Gomez,F (2361)-Lazaro Pujol,A (2348) Platja d'Aro 2022 (7)}) 14... axb5 {[%emt 0:11:14]} 15. axb5 {[%emt 0:00:19]} Bd7 {[%emt 0:00:08]} 16. d4 {[%emt 0:04:45]} Ng6 {[%emt 0:02:33]} 17. h3 {[%emt 0:24:44]} (17. Bd5 $1 $14 Bxb5 18. Bxb7 Bxf1 19. Nxf1) 17... h5 {[%emt 0:11:02]} 18. Nb3 {[%emt 0:02:16]} exd4 {[%emt 0:08:03]} (18... Qe7 $1 $11) 19. cxd4 $16 {[%emt 0:13:06]} (19. Nbxd4 $6 Bb6 $11) 19... g4 {[%emt 0:06:18]} 20. e5 {[%emt 0:04:21]} Qg7 {[%emt 0:03:52]} 21. Nh4 {[%emt 0:00:19]} Nxh4 {[%emt 0:01:52]} 22. Bxh4 {[%emt 0:00:07]} dxe5 {[%emt 0:02:08]} 23. dxe5 {[%emt 0:00:48]} Be6 {[%emt 0:07:44]} (23... gxh3 $14 24. Rg1 (24. Qxd7 $2 Qxg2#) 24... Bg4) 24. Bxe6 $16 {[%emt 0:03:54]} fxe6 {[%emt 0:00:03] [#]} 25. hxg4 $1 {[%emt 0:00:06]} Qxg4 {[%emt 0:01:14]} 26. Qxg4+ {[%emt 0:01:05]} hxg4 {[%emt 0:00:05]} 27. Ra4 {[%emt 0:00:05]} Bb6 {[%emt 0:00:21]} 28. Rxg4+ {[%emt 0:00:11]} Kh8 {[%emt 0:00:46]} 29. f4 {[%emt 0:05:07]} Rf7 {[%emt 0:04:26]} 30. Rg6 {[%emt 0:00:54]} (30. Rd1 $18) 30... Be3 $16 {[%emt 0:02:36]} 31. g3 {[%emt 0:09:25]} (31. Rxe6 Rxf4 32. Rxf4 Bxf4) 31... Ra3 $2 {[%emt 0:01:33]} (31... Nf8 $16 32. Bf6+ Kh7) 32. Kg2 $18 {[%emt 0:03:06]} (32. Rb1 Nf8 33. Bf6+ Kh7 $16) 32... Rg7 {[%emt 0:02:16]} 33. Rxe6 {[%emt 0:04:37]} Rxb3 {[%emt 0:00:54] [#]} 34. Re8+ $1 {[%emt 0:00:57]} Rg8 {[%emt 0:00:05]} 35. Re7 {[%emt 0:00:04]} Ra8 {[%emt 0:05:15]} ({And not} 35... Rxb5 36. Bf6+ (36. Rxc7 Rg7 $16) (36. Rxc7 Rg7 $16)) 36. Rxc7 {[%emt 0:01:11]} Kg8 {[%emt 0:01:04]} 37. Rxb7 {[%emt 0:00:21]} Nf8 $2 {[%emt 0:00:27]} (37... Ra7 {was necessary.}) 38. f5 $18 {[%emt 0:03:19]} Ra2+ {[%emt 0:00:54]} 39. Kh3 {[%emt 0:00:05]} Ra7 {[%emt 0:00:46]} 40. Rxa7 {[%emt 0:01:02]} Bxa7 {[%emt 0:00:05]} 41. e6 {[%emt 0:00:14]} Re3 {[%emt 0:00:30]} (41... Rxb5 $142 42. Rf4 Rb1 43. Rg4+ Kh7) 42. Ra1 {[%emt 0:00:30]} Bc5 {[%emt 0:00:55]} 43. Rc1 {[%emt 0:00:44]} (43. Ra8 $142 Kh7 44. e7 Bxe7 45. Ra7 (45. Bxe7 Rxe7 46. Rxf8 Rb7 $18)) 43... Re5 $18 {[%emt 0:00:15]} 44. Kg4 {[%emt 0:00:24]} Kh7 {[%emt 0:01:00]} 45. Bf6 {[%emt 0:00:55]} 1-0